[Event "Titled Tuesday Blitz June 15 2021"]
[White "Aditya Mittal"]
[Black "Eternauta2400"]
[WhiteFideId "35042025"]
[WhiteElo "2171"]
[BlackElo "2497"]
[Result "0-1"]
[Round "06"]
[TimeControl "180+1"]
[Date "2021.06.15"]
[WhiteClock "0:00:04"]
[BlackClock "0:00:57"]

1. Nf3 {[%clk 0:03:00]}  d5 {[%clk 0:02:59]} 2. g3 {[%clk 0:03:01]}  Nd7 {[%clk 0:02:58]} 3. Bg2 {[%clk 0:03:02]}  e5 {[%clk 0:02:58]} 4. O-O {[%clk 0:03:02]}  Ngf6 {[%clk 0:02:59]} 5. b3 {[%clk 0:03:03]}  Bd6 {[%clk 0:02:58]} 6. Bb2 {[%clk 0:03:03]}  O-O {[%clk 0:02:59]} 7. d3 {[%clk 0:03:04]}  Re8 {[%clk 0:02:59]} 8. e3 {[%clk 0:03:04]}  a5 {[%clk 0:02:59]} 9. a3 {[%clk 0:03:03]}  h6 {[%clk 0:02:58]} 10. Nbd2 {[%clk 0:03:03]}  Nf8 {[%clk 0:02:57]} 11. c4 {[%clk 0:03:03]}  c6 {[%clk 0:02:57]} 12. Qc2 {[%clk 0:03:00]}  Ng6 {[%clk 0:02:56]} 13. h3 {[%clk 0:02:57]}  Be6 {[%clk 0:02:53]} 14. Rfe1 {[%clk 0:02:54]}  Qd7 {[%clk 0:02:51]} 15. Kh2 {[%clk 0:02:48]}  Bc7 {[%clk 0:02:43]} 16. Rad1 {[%clk 0:02:38]}  b5 {[%clk 0:02:35]} 17. d4 {[%clk 0:02:08]}  e4 {[%clk 0:02:34]} 18. Ne5 {[%clk 0:02:08]}  Nxe5 {[%clk 0:02:28]} 19. dxe5 {[%clk 0:02:09]}  Nh7 {[%clk 0:02:28]} 20. Nxe4 {[%clk 0:02:07]}  Bf5 {[%clk 0:02:21]} 21. Qc3 {[%clk 0:01:55]}  Bxe5 {[%clk 0:02:19]} 22. Qxe5 {[%clk 0:01:05]}  Rxe5 {[%clk 0:02:17]} 23. Bxe5 {[%clk 0:01:06]}  Qe8 {[%clk 0:02:04]} 24. cxd5 {[%clk 0:00:28]}  Qxe5 {[%clk 0:02:02]} 25. f4 {[%clk 0:00:28]}  Qe7 {[%clk 0:01:54]} 26. d6 {[%clk 0:00:23]}  Qd8 {[%clk 0:01:53]} 27. Nc5 {[%clk 0:00:21]}  Bd7 {[%clk 0:01:51]} 28. b4 {[%clk 0:00:19]}  axb4 {[%clk 0:01:50]} 29. axb4 {[%clk 0:00:19]}  Nf6 {[%clk 0:01:50]} 30. e4 {[%clk 0:00:20]}  Ra2 {[%clk 0:01:47]} 31. e5 {[%clk 0:00:19]}  Nd5 {[%clk 0:01:47]} 32. Kh1 {[%clk 0:00:14]}  Nxb4 {[%clk 0:01:46]} 33. f5 {[%clk 0:00:12]}  Bxf5 {[%clk 0:01:41]} 34. d7 {[%clk 0:00:13]}  Nd5 {[%clk 0:01:36]} 35. Bxd5 {[%clk 0:00:07]}  cxd5 {[%clk 0:01:33]} 36. Rxd5 {[%clk 0:00:08]}  Bxh3 {[%clk 0:01:01]} 37. Nb7 {[%clk 0:00:04]}  Bg2+ {[%clk 0:01:01]} 38. Kg1 {[%clk 0:00:04]}  Qb6+ {[%clk 0:01:01]} 39. Nc5 {[%clk 0:00:04]}  Bxd5 {[%clk 0:00:57]} 0-1


[Site "https://www.chess.com"]

[Event "Titled Tuesday Blitz June 15 2021"]
[White "Andrews, Todd"]
[Black "Oparin, Grigoriy"]
[WhiteFideId "2012456"]
[BlackFideId "24125890"]
[WhiteElo "2438"]
[BlackElo "2628"]
[Result "0-1"]
[Round "06"]
[TimeControl "180+1"]
[Date "2021.06.15"]
[WhiteClock "0:00:07"]
[BlackClock "0:01:33"]

1. e4 {[%clk 0:03:00]}  d6 {[%clk 0:02:58]} 2. Nf3 {[%clk 0:02:59]}  g6 {[%clk 0:02:57]} 3. d3 {[%clk 0:02:58]}  Bg7 {[%clk 0:02:58]} 4. g3 {[%clk 0:02:58]}  c5 {[%clk 0:02:58]} 5. Bg2 {[%clk 0:02:59]}  Nc6 {[%clk 0:02:59]} 6. O-O {[%clk 0:02:59]}  e6 {[%clk 0:02:58]} 7. Re1 {[%clk 0:02:59]}  Nge7 {[%clk 0:02:58]} 8. c3 {[%clk 0:03:00]}  O-O {[%clk 0:02:58]} 9. d4 {[%clk 0:03:00]}  Rb8 {[%clk 0:02:58]} 10. d5 {[%clk 0:02:54]}  Na5 {[%clk 0:02:53]} 11. Bf4 {[%clk 0:02:44]}  e5 {[%clk 0:02:51]} 12. Bc1 {[%clk 0:02:41]}  b5 {[%clk 0:02:50]} 13. Nbd2 {[%clk 0:02:35]}  b4 {[%clk 0:02:43]} 14. c4 {[%clk 0:02:33]}  f5 {[%clk 0:02:40]} 15. Ng5 {[%clk 0:02:28]}  h6 {[%clk 0:02:39]} 16. Ne6 {[%clk 0:02:28]}  Bxe6 {[%clk 0:02:39]} 17. dxe6 {[%clk 0:02:28]}  f4 {[%clk 0:02:39]} 18. b3 {[%clk 0:02:22]}  Nac6 {[%clk 0:02:39]} 19. Bb2 {[%clk 0:02:21]}  Qc8 {[%clk 0:02:38]} 20. Qg4 {[%clk 0:02:10]}  h5 {[%clk 0:02:34]} 21. Qh3 {[%clk 0:02:10]}  Bh6 {[%clk 0:02:34]} 22. Nf3 {[%clk 0:02:05]}  Rf6 {[%clk 0:02:32]} 23. g4 {[%clk 0:01:53]}  Rxe6 {[%clk 0:02:16]} 24. gxh5 {[%clk 0:01:49]}  g5 {[%clk 0:02:14]} 25. Qg4 {[%clk 0:01:44]}  Rf6 {[%clk 0:02:14]} 26. Bh3 {[%clk 0:01:44]}  Qxg4+ {[%clk 0:02:08]} 27. Bxg4 {[%clk 0:01:45]}  a5 {[%clk 0:02:03]} 28. Kh1 {[%clk 0:01:44]}  Kh7 {[%clk 0:01:58]} 29. Rg1 {[%clk 0:01:43]}  a4 {[%clk 0:01:49]} 30. Rad1 {[%clk 0:01:42]}  Ra8 {[%clk 0:01:47]} 31. Bd7 {[%clk 0:01:35]}  Ra7 {[%clk 0:01:42]} 32. Bxc6 {[%clk 0:01:34]}  Nxc6 {[%clk 0:01:42]} 33. Nxg5+ {[%clk 0:01:33]}  Bxg5 {[%clk 0:01:43]} 34. Rxg5 {[%clk 0:01:33]}  axb3 {[%clk 0:01:42]} 35. axb3 {[%clk 0:01:33]}  Ra2 {[%clk 0:01:43]} 36. Rdg1 {[%clk 0:00:38]}  Rf7 {[%clk 0:01:42]} 37. Bc1 {[%clk 0:00:35]}  Rxf2 {[%clk 0:01:36]} 38. Rg6 {[%clk 0:00:35]}  Rd7 {[%clk 0:01:36]} 39. h6 {[%clk 0:00:33]}  Nd4 {[%clk 0:01:35]} 40. Rg7+ {[%clk 0:00:27]}  Rxg7 {[%clk 0:01:35]} 41. hxg7 {[%clk 0:00:28]}  Kg8 {[%clk 0:01:35]} 42. Rg6 {[%clk 0:00:15]}  Nf3 {[%clk 0:01:33]} 43. Rh6 {[%clk 0:00:15]}  Kxg7 {[%clk 0:01:33]} 44. Rh3 {[%clk 0:00:14]}  Ng5 {[%clk 0:01:32]} 45. Rh5 {[%clk 0:00:14]}  Nxe4 {[%clk 0:01:32]} 46. Rh4 {[%clk 0:00:13]}  Rc2 {[%clk 0:01:32]} 47. Bxf4 {[%clk 0:00:12]}  exf4 {[%clk 0:01:31]} 48. Rxf4 {[%clk 0:00:13]}  Nf6 {[%clk 0:01:29]} 49. Rf5 {[%clk 0:00:12]}  Rc3 {[%clk 0:01:29]} 50. Rg5+ {[%clk 0:00:10]}  Kf7 {[%clk 0:01:30]} 51. Kg2 {[%clk 0:00:08]}  Rxb3 {[%clk 0:01:30]} 52. h4 {[%clk 0:00:08]}  Rc3 {[%clk 0:01:30]} 53. h5 {[%clk 0:00:08]}  Rxc4 {[%clk 0:01:31]} 54. h6 {[%clk 0:00:07]}  Rg4+ {[%clk 0:01:31]} 55. Rxg4 {[%clk 0:00:07]}  Nxg4 {[%clk 0:01:32]} 56. h7 {[%clk 0:00:07]}  Kg7 {[%clk 0:01:33]} 0-1


[Site "https://www.chess.com"]

[Event "Titled Tuesday Blitz June 15 2021"]
[White "Bayo Milagro, Alvaro"]
[Black "Herrera Reyes, Jose Antonio"]
[WhiteFideId "22275240"]
[BlackFideId "2274914"]
[WhiteElo "2270"]
[BlackElo "2370"]
[Result "1-0"]
[Round "06"]
[TimeControl "180+1"]
[Date "2021.06.15"]
[WhiteClock "0:00:13"]
[BlackClock "0:00:10"]

1. e4 {[%clk 0:03:00]}  c5 {[%clk 0:02:59]} 2. Nf3 {[%clk 0:02:59]}  e6 {[%clk 0:03:00]} 3. d4 {[%clk 0:02:59]}  cxd4 {[%clk 0:03:00]} 4. Nxd4 {[%clk 0:03:00]}  a6 {[%clk 0:03:01]} 5. c4 {[%clk 0:03:00]}  Qc7 {[%clk 0:03:02]} 6. Nc3 {[%clk 0:03:00]}  b6 {[%clk 0:03:02]} 7. Be3 {[%clk 0:03:00]}  Bb7 {[%clk 0:03:03]} 8. Be2 {[%clk 0:02:59]}  Nf6 {[%clk 0:03:03]} 9. f3 {[%clk 0:02:59]}  d6 {[%clk 0:03:03]} 10. Qd2 {[%clk 0:02:59]}  Nbd7 {[%clk 0:03:03]} 11. O-O {[%clk 0:02:59]}  Be7 {[%clk 0:03:04]} 12. Rfd1 {[%clk 0:02:59]}  h5 {[%clk 0:03:04]} 13. Rac1 {[%clk 0:02:57]}  h4 {[%clk 0:03:03]} 14. b4 {[%clk 0:02:54]}  h3 {[%clk 0:03:02]} 15. g3 {[%clk 0:02:54]}  Rc8 {[%clk 0:03:01]} 16. Nb3 {[%clk 0:02:47]}  Qb8 {[%clk 0:02:59]} 17. a3 {[%clk 0:02:36]}  Ne5 {[%clk 0:02:57]} 18. Na4 {[%clk 0:02:35]}  b5 {[%clk 0:02:28]} 19. cxb5 {[%clk 0:02:33]}  axb5 {[%clk 0:02:22]} 20. Bxb5+ {[%clk 0:02:30]}  Kf8 {[%clk 0:02:21]} 21. Rxc8+ {[%clk 0:02:27]}  Qxc8 {[%clk 0:02:19]} 22. Be2 {[%clk 0:02:24]}  Qa8 {[%clk 0:02:18]} 23. Na5 {[%clk 0:02:07]}  Bxe4 {[%clk 0:02:11]} 24. Nb6 {[%clk 0:01:56]}  Qd8 {[%clk 0:01:17]} 25. fxe4 {[%clk 0:01:51]}  Nxe4 {[%clk 0:01:16]} 26. Qc2 {[%clk 0:01:45]}  d5 {[%clk 0:00:29]} 27. Qc8 {[%clk 0:01:42]}  Qxc8 {[%clk 0:00:20]} 28. Nxc8 {[%clk 0:01:43]}  Nc3 {[%clk 0:00:20]} 29. Rd2 {[%clk 0:01:26]}  Nxe2+ {[%clk 0:00:21]} 30. Rxe2 {[%clk 0:01:25]}  d4 {[%clk 0:00:21]} 31. Nxe7 {[%clk 0:01:14]}  Kxe7 {[%clk 0:00:21]} 32. Bg5+ {[%clk 0:01:11]}  Kd6 {[%clk 0:00:17]} 33. Bf4 {[%clk 0:01:10]}  f6 {[%clk 0:00:18]} 34. Nc4+ {[%clk 0:01:08]}  Kd5 {[%clk 0:00:18]} 35. Nxe5 {[%clk 0:01:03]}  fxe5 {[%clk 0:00:18]} 36. Rxe5+ {[%clk 0:01:03]}  Kc4 {[%clk 0:00:19]} 37. Rxe6 {[%clk 0:01:00]}  Ra8 {[%clk 0:00:19]} 38. Rc6+ {[%clk 0:00:57]}  Kd3 {[%clk 0:00:19]} 39. Rd6 {[%clk 0:00:46]}  Ke4 {[%clk 0:00:18]} 40. Re6+ {[%clk 0:00:33]}  Kf3 {[%clk 0:00:17]} 41. Bc1 {[%clk 0:00:27]}  Rc8 {[%clk 0:00:16]} 42. Re1 {[%clk 0:00:27]}  Rc2 {[%clk 0:00:16]} 43. Rf1+ {[%clk 0:00:25]}  Ke4 {[%clk 0:00:15]} 44. b5 {[%clk 0:00:24]}  d3 {[%clk 0:00:13]} 45. b6 {[%clk 0:00:23]}  Rc6 {[%clk 0:00:13]} 46. b7 {[%clk 0:00:15]}  Rb6 {[%clk 0:00:13]} 47. Rf4+ {[%clk 0:00:15]}  Kd5 {[%clk 0:00:12]} 48. Rb4 {[%clk 0:00:16]}  Rc6 {[%clk 0:00:10]} 49. Bd2 {[%clk 0:00:13]} 1-0


[Site "https://www.chess.com"]

[Event "Titled Tuesday Blitz June 15 2021"]
[White "Beukes, Dante M"]
[Black "Jakubowski, Krzysztof"]
[WhiteFideId "15200540"]
[BlackFideId "1112848"]
[WhiteElo "2000"]
[BlackElo "2462"]
[Result "0-1"]
[Round "06"]
[TimeControl "180+1"]
[Date "2021.06.15"]
[WhiteClock "0:01:35"]
[BlackClock "0:01:43"]

1. e4 {[%clk 0:03:00]}  c5 {[%clk 0:02:57]} 2. Nf3 {[%clk 0:02:59]}  e6 {[%clk 0:02:57]} 3. c3 {[%clk 0:02:53]}  Nf6 {[%clk 0:02:54]} 4. e5 {[%clk 0:02:53]}  Nd5 {[%clk 0:02:52]} 5. Bc4 {[%clk 0:02:54]}  Nb6 {[%clk 0:02:43]} 6. Bb3 {[%clk 0:02:52]}  d5 {[%clk 0:02:36]} 7. exd6 {[%clk 0:02:50]}  Bxd6 {[%clk 0:02:35]} 8. O-O {[%clk 0:02:46]}  Bd7 {[%clk 0:02:29]} 9. d4 {[%clk 0:02:45]}  Bc6 {[%clk 0:02:25]} 10. Ne5 {[%clk 0:02:36]}  Bxe5 {[%clk 0:02:20]} 11. dxe5 {[%clk 0:02:37]}  Qh4 {[%clk 0:02:02]} 12. Qd6 {[%clk 0:02:12]}  N8d7 {[%clk 0:01:57]} 13. Be3 {[%clk 0:02:02]}  Qe4 {[%clk 0:01:46]} 14. f3 {[%clk 0:01:35]}  Qxe3+ {[%clk 0:01:44]} 15. Kh1 {[%clk 0:01:35]}  Qxe5 {[%clk 0:01:43]} 0-1


[Site "https://www.chess.com"]

[Event "Titled Tuesday Blitz June 15 2021"]
[White "Bluebaum, Matthias"]
[Black "Zhigalko, Sergei"]
[WhiteFideId "24651516"]
[BlackFideId "13502956"]
[WhiteElo "2685"]
[BlackElo "2662"]
[Result "1-0"]
[Round "06"]
[TimeControl "180+1"]
[Date "2021.06.15"]
[WhiteClock "0:00:05"]
[BlackClock "0:00:01"]

1. d4 {[%clk 0:03:00]}  Nf6 {[%clk 0:03:00]} 2. c4 {[%clk 0:03:01]}  e6 {[%clk 0:03:00]} 3. Nc3 {[%clk 0:03:02]}  Bb4 {[%clk 0:03:00]} 4. e3 {[%clk 0:03:02]}  O-O {[%clk 0:03:00]} 5. Bd2 {[%clk 0:03:03]}  b6 {[%clk 0:02:59]} 6. Bd3 {[%clk 0:03:03]}  Bb7 {[%clk 0:02:59]} 7. Nf3 {[%clk 0:03:03]}  d5 {[%clk 0:03:00]} 8. cxd5 {[%clk 0:03:03]}  exd5 {[%clk 0:03:00]} 9. O-O {[%clk 0:03:04]}  Bd6 {[%clk 0:02:57]} 10. Ne5 {[%clk 0:02:52]}  c5 {[%clk 0:02:57]} 11. f4 {[%clk 0:02:46]}  Nc6 {[%clk 0:02:57]} 12. Ng4 {[%clk 0:02:46]}  Nb4 {[%clk 0:02:41]} 13. Bb1 {[%clk 0:02:24]}  cxd4 {[%clk 0:02:39]} 14. exd4 {[%clk 0:02:21]}  Rc8 {[%clk 0:02:18]} 15. f5 {[%clk 0:02:06]}  Be7 {[%clk 0:01:26]} 16. Be3 {[%clk 0:01:44]}  Nxg4 {[%clk 0:01:16]} 17. Qxg4 {[%clk 0:01:45]}  Bf6 {[%clk 0:01:17]} 18. a3 {[%clk 0:01:39]}  Re8 {[%clk 0:01:01]} 19. Bf2 {[%clk 0:01:34]}  Nc6 {[%clk 0:00:58]} 20. Ba2 {[%clk 0:01:35]}  Na5 {[%clk 0:00:55]} 21. Rae1 {[%clk 0:01:27]}  Nc4 {[%clk 0:00:55]} 22. Bxc4 {[%clk 0:00:51]}  dxc4 {[%clk 0:00:56]} 23. Rxe8+ {[%clk 0:00:51]}  Qxe8 {[%clk 0:00:56]} 24. d5 {[%clk 0:00:29]}  Kh8 {[%clk 0:00:13]} 25. Bd4 {[%clk 0:00:27]}  Qd8 {[%clk 0:00:10]} 26. Re1 {[%clk 0:00:22]}  h6 {[%clk 0:00:08]} 27. Qe4 {[%clk 0:00:18]}  a6 {[%clk 0:00:04]} 28. Rd1 {[%clk 0:00:11]}  b5 {[%clk 0:00:04]} 29. Qe3 {[%clk 0:00:12]}  Bxd4 {[%clk 0:00:02]} 30. Qxd4 {[%clk 0:00:12]}  Qg5 {[%clk 0:00:03]} 31. Ne4 {[%clk 0:00:10]}  Qh5 {[%clk 0:00:02]} 32. f6 {[%clk 0:00:08]}  g6 {[%clk 0:00:02]} 33. Nd6 {[%clk 0:00:08]}  Rc7 {[%clk 0:00:02]} 34. Nxb7 {[%clk 0:00:05]}  Rxb7 {[%clk 0:00:03]} 35. Re1 {[%clk 0:00:05]}  Rd7 {[%clk 0:00:03]} 36. d6 {[%clk 0:00:06]}  Qg5 {[%clk 0:00:02]} 37. h3 {[%clk 0:00:04]}  Qf5 {[%clk 0:00:01]} 38. Re7 {[%clk 0:00:04]}  Rd8 {[%clk 0:00:01]} 39. d7 {[%clk 0:00:04]}  Kh7 {[%clk 0:00:01]} 40. Rxf7+ {[%clk 0:00:04]}  Kg8 {[%clk 0:00:02]} 41. Re7 {[%clk 0:00:05]}  Kf8 {[%clk 0:00:02]} 42. Qd6 {[%clk 0:00:04]}  Kg8 {[%clk 0:00:01]} 43. Rg7+ {[%clk 0:00:04]}  Kh8 {[%clk 0:00:02]} 44. Qe7 {[%clk 0:00:05]}  Qc5+ {[%clk 0:00:01]} 45. Qxc5 {[%clk 0:00:05]} 1-0


[Site "https://www.chess.com"]

[Event "Titled Tuesday Blitz June 15 2021"]
[White "Chernomordik, Pavel"]
[Black "Vaishali, Rameshbabu"]
[WhiteFideId "2804530"]
[BlackFideId "5091756"]
[WhiteElo "2299"]
[BlackElo "2313"]
[Result "1-0"]
[Round "06"]
[TimeControl "180+1"]
[Date "2021.06.15"]
[WhiteClock "0:01:57"]
[BlackClock "0:01:26"]

1. e4 {[%clk 0:03:00]}  g6 {[%clk 0:02:58]} 2. d4 {[%clk 0:02:56]}  Bg7 {[%clk 0:02:59]} 3. Nc3 {[%clk 0:02:55]}  d5 {[%clk 0:02:58]} 4. e5 {[%clk 0:02:42]}  h5 {[%clk 0:02:46]} 5. Bg5 {[%clk 0:02:35]}  Nh6 {[%clk 0:02:39]} 6. Qd2 {[%clk 0:02:31]}  c6 {[%clk 0:02:31]} 7. O-O-O {[%clk 0:02:30]}  b5 {[%clk 0:02:30]} 8. Kb1 {[%clk 0:02:25]}  a5 {[%clk 0:02:27]} 9. Bd3 {[%clk 0:02:18]}  a4 {[%clk 0:02:23]} 10. a3 {[%clk 0:02:15]}  Na6 {[%clk 0:02:19]} 11. Na2 {[%clk 0:02:09]}  Bf5 {[%clk 0:02:12]} 12. Ne2 {[%clk 0:02:05]}  Qb6 {[%clk 0:01:45]} 13. Nb4 {[%clk 0:02:00]}  Nxb4 {[%clk 0:01:26]} 14. Qxb4 {[%clk 0:01:59]}  e6 {[%clk 0:01:26]} 15. Qe7# {[%clk 0:01:57]} 1-0


[Site "https://www.chess.com"]

[Event "Titled Tuesday Blitz June 15 2021"]
[White "Costachi, Mihnea"]
[Black "Aldokhin, Ivan"]
[WhiteFideId "1217518"]
[BlackFideId "24115720"]
[WhiteElo "2479"]
[BlackElo "2306"]
[Result "1-0"]
[Round "06"]
[TimeControl "180+1"]
[Date "2021.06.15"]
[WhiteClock "0:01:15"]
[BlackClock "0:00:02"]

1. d4 {[%clk 0:03:00]}  Nf6 {[%clk 0:02:59]} 2. c4 {[%clk 0:03:01]}  g6 {[%clk 0:03:00]} 3. Nc3 {[%clk 0:03:01]}  Bg7 {[%clk 0:03:00]} 4. e4 {[%clk 0:03:01]}  d6 {[%clk 0:03:01]} 5. Be2 {[%clk 0:03:02]}  Nc6 {[%clk 0:03:00]} 6. Nf3 {[%clk 0:03:01]}  O-O {[%clk 0:02:59]} 7. d5 {[%clk 0:03:01]}  Nb4 {[%clk 0:02:59]} 8. O-O {[%clk 0:02:57]}  Re8 {[%clk 0:02:59]} 9. e5 {[%clk 0:02:51]}  dxe5 {[%clk 0:02:55]} 10. Nxe5 {[%clk 0:02:52]}  e6 {[%clk 0:02:40]} 11. a3 {[%clk 0:02:48]}  exd5 {[%clk 0:02:40]} 12. Nxf7 {[%clk 0:02:45]}  Kxf7 {[%clk 0:02:40]} 13. axb4 {[%clk 0:02:46]}  d4 {[%clk 0:02:36]} 14. Nb5 {[%clk 0:02:46]}  Ne4 {[%clk 0:02:20]} 15. Bf4 {[%clk 0:02:28]}  Be5 {[%clk 0:01:53]} 16. Bxe5 {[%clk 0:02:23]}  Rxe5 {[%clk 0:01:53]} 17. Nxd4 {[%clk 0:02:21]}  Qe7 {[%clk 0:01:19]} 18. c5 {[%clk 0:02:13]}  Bd7 {[%clk 0:01:11]} 19. Bc4+ {[%clk 0:02:13]}  Kg7 {[%clk 0:01:08]} 20. Nf3 {[%clk 0:02:13]}  Rf5 {[%clk 0:01:02]} 21. Re1 {[%clk 0:02:14]}  Bc6 {[%clk 0:00:52]} 22. Qd4+ {[%clk 0:01:55]}  Kh6 {[%clk 0:00:47]} 23. b5 {[%clk 0:01:55]}  Rxf3 {[%clk 0:00:35]} 24. bxc6 {[%clk 0:01:48]}  Rf4 {[%clk 0:00:16]} 25. cxb7 {[%clk 0:01:47]}  Re8 {[%clk 0:00:10]} 26. g3 {[%clk 0:01:40]}  Qg5 {[%clk 0:00:07]} 27. b8=Q {[%clk 0:01:24]}  Nxf2 {[%clk 0:00:02]} 28. Qxf2 {[%clk 0:01:16]}  Rxf2 {[%clk 0:00:02]} 29. Qxe8 {[%clk 0:01:15]} 1-0


[Site "https://www.chess.com"]

[Event "Titled Tuesday Blitz June 15 2021"]
[White "Demchenko, Anton"]
[Black "Macovei, Andrei"]
[WhiteFideId "4160258"]
[BlackFideId "13904680"]
[WhiteElo "2593"]
[BlackElo "2439"]
[Result "1-0"]
[Round "06"]
[TimeControl "180+1"]
[Date "2021.06.15"]
[WhiteClock "0:00:47"]
[BlackClock "0:00:12"]

1. e4 {[%clk 0:03:00]}  c6 {[%clk 0:02:46]} 2. d4 {[%clk 0:02:58]}  d5 {[%clk 0:02:47]} 3. Nd2 {[%clk 0:02:58]}  dxe4 {[%clk 0:02:47]} 4. Nxe4 {[%clk 0:02:59]}  Nf6 {[%clk 0:02:48]} 5. Nxf6+ {[%clk 0:02:58]}  exf6 {[%clk 0:02:49]} 6. Bc4 {[%clk 0:02:58]}  Bd6 {[%clk 0:02:49]} 7. Qe2+ {[%clk 0:02:58]}  Qe7 {[%clk 0:02:49]} 8. Qxe7+ {[%clk 0:02:58]}  Kxe7 {[%clk 0:02:50]} 9. Ne2 {[%clk 0:02:58]}  Re8 {[%clk 0:02:46]} 10. Bd2 {[%clk 0:02:54]}  Bf5 {[%clk 0:02:41]} 11. O-O-O {[%clk 0:02:49]}  Nd7 {[%clk 0:02:38]} 12. Bf4 {[%clk 0:02:42]}  Nb6 {[%clk 0:02:31]} 13. Bb3 {[%clk 0:02:33]}  a5 {[%clk 0:02:31]} 14. Rhe1 {[%clk 0:02:32]}  Be6 {[%clk 0:02:23]} 15. Bxd6+ {[%clk 0:01:48]}  Kxd6 {[%clk 0:02:10]} 16. Ng3 {[%clk 0:01:49]}  Kc7 {[%clk 0:01:47]} 17. Nh5 {[%clk 0:01:26]}  Bg4 {[%clk 0:01:30]} 18. Nxg7 {[%clk 0:01:24]}  Rg8 {[%clk 0:00:54]} 19. Re7+ {[%clk 0:01:23]}  Kd8 {[%clk 0:00:36]} 20. Rxf7 {[%clk 0:01:22]}  Bxd1 {[%clk 0:00:32]} 21. Kxd1 {[%clk 0:01:19]}  Nd5 {[%clk 0:00:22]} 22. Rxb7 {[%clk 0:01:08]}  a4 {[%clk 0:00:20]} 23. Bxd5 {[%clk 0:01:03]}  cxd5 {[%clk 0:00:20]} 24. g3 {[%clk 0:01:04]}  Ra6 {[%clk 0:00:19]} 25. Nf5 {[%clk 0:01:01]}  Rg5 {[%clk 0:00:17]} 26. Ne3 {[%clk 0:01:00]}  Rh5 {[%clk 0:00:14]} 27. h4 {[%clk 0:00:59]}  Ke8 {[%clk 0:00:14]} 28. Kd2 {[%clk 0:00:57]}  f5 {[%clk 0:00:12]} 29. Nxd5 {[%clk 0:00:55]}  Rd6 {[%clk 0:00:12]} 30. c4 {[%clk 0:00:50]}  Rhh6 {[%clk 0:00:12]} 31. Kd3 {[%clk 0:00:49]}  Rhe6 {[%clk 0:00:12]} 32. Nc7+ {[%clk 0:00:47]} 1-0


[Site "https://www.chess.com"]

[Event "Titled Tuesday Blitz June 15 2021"]
[White "Devaev, Alexander"]
[Black "Aradhya, Garg"]
[WhiteFideId "4169395"]
[BlackFideId "25006746"]
[WhiteElo "2185"]
[BlackElo "2146"]
[Result "0-1"]
[Round "06"]
[TimeControl "180+1"]
[Date "2021.06.15"]
[WhiteClock "0:00:06"]
[BlackClock "0:00:36"]

1. d4 {[%clk 0:02:55]}  d5 {[%clk 0:03:00]} 2. c4 {[%clk 0:02:54]}  c6 {[%clk 0:03:00]} 3. cxd5 {[%clk 0:02:53]}  cxd5 {[%clk 0:03:01]} 4. Nc3 {[%clk 0:02:53]}  Nf6 {[%clk 0:02:59]} 5. Bf4 {[%clk 0:02:54]}  Nc6 {[%clk 0:02:59]} 6. e3 {[%clk 0:02:54]}  a6 {[%clk 0:02:58]} 7. Bd3 {[%clk 0:02:53]}  Bg4 {[%clk 0:02:58]} 8. f3 {[%clk 0:02:52]}  Bd7 {[%clk 0:02:58]} 9. Nge2 {[%clk 0:02:52]}  Nh5 {[%clk 0:02:29]} 10. O-O {[%clk 0:01:27]}  e6 {[%clk 0:02:23]} 11. Rc1 {[%clk 0:01:25]}  Rc8 {[%clk 0:02:22]} 12. Bb1 {[%clk 0:01:24]}  Nxf4 {[%clk 0:02:20]} 13. Nxf4 {[%clk 0:01:23]}  Bd6 {[%clk 0:02:20]} 14. Nd3 {[%clk 0:01:12]}  O-O {[%clk 0:02:15]} 15. a3 {[%clk 0:01:08]}  g6 {[%clk 0:02:13]} 16. b4 {[%clk 0:01:07]}  b6 {[%clk 0:02:05]} 17. f4 {[%clk 0:00:59]}  f6 {[%clk 0:02:01]} 18. Kh1 {[%clk 0:00:58]}  Kg7 {[%clk 0:02:00]} 19. Ba2 {[%clk 0:00:56]}  Ne7 {[%clk 0:01:58]} 20. Qd2 {[%clk 0:00:47]}  h5 {[%clk 0:01:56]} 21. Nf2 {[%clk 0:00:30]}  a5 {[%clk 0:01:36]} 22. Rb1 {[%clk 0:00:22]}  axb4 {[%clk 0:01:34]} 23. axb4 {[%clk 0:00:22]}  Nf5 {[%clk 0:01:14]} 24. e4 {[%clk 0:00:20]}  dxe4 {[%clk 0:01:13]} 25. Nfxe4 {[%clk 0:00:21]}  Qe7 {[%clk 0:01:12]} 26. Rfe1 {[%clk 0:00:17]}  Bxb4 {[%clk 0:01:11]} 27. Rb3 {[%clk 0:00:12]}  Ba4 {[%clk 0:00:43]} 28. Rbb1 {[%clk 0:00:11]}  Bc6 {[%clk 0:00:40]} 29. Qd3 {[%clk 0:00:09]}  Bxe4 {[%clk 0:00:38]} 30. Nxe4 {[%clk 0:00:08]}  Bxe1 {[%clk 0:00:38]} 31. Rxe1 {[%clk 0:00:09]}  Rfd8 {[%clk 0:00:37]} 32. d5 {[%clk 0:00:06]}  exd5 {[%clk 0:00:36]} 0-1


[Site "https://www.chess.com"]

[Event "Titled Tuesday Blitz June 15 2021"]
[White "Dmitrenko, Viktor"]
[Black "Klimkowski, Jan"]
[WhiteFideId "14110270"]
[BlackFideId "21856222"]
[WhiteElo "2338"]
[BlackElo "1903"]
[Result "0-1"]
[Round "06"]
[TimeControl "180+1"]
[Date "2021.06.15"]
[WhiteClock "0:00:41"]
[BlackClock "0:01:34"]

1. Nf3 {[%clk 0:03:00]}  Nf6 {[%clk 0:02:58]} 2. c4 {[%clk 0:02:57]}  e6 {[%clk 0:02:58]} 3. d4 {[%clk 0:02:55]}  Bb4+ {[%clk 0:02:57]} 4. Nbd2 {[%clk 0:02:53]}  a5 {[%clk 0:02:53]} 5. e3 {[%clk 0:02:52]}  O-O {[%clk 0:02:52]} 6. Bd3 {[%clk 0:02:52]}  d5 {[%clk 0:02:53]} 7. O-O {[%clk 0:02:51]}  dxc4 {[%clk 0:02:53]} 8. Nxc4 {[%clk 0:02:51]}  Nc6 {[%clk 0:02:48]} 9. Qc2 {[%clk 0:02:48]}  Be7 {[%clk 0:02:46]} 10. a3 {[%clk 0:02:47]}  a4 {[%clk 0:02:46]} 11. Bd2 {[%clk 0:02:46]}  h6 {[%clk 0:02:35]} 12. Rac1 {[%clk 0:02:45]}  Bd7 {[%clk 0:02:31]} 13. Nce5 {[%clk 0:02:42]}  Be8 {[%clk 0:02:27]} 14. Nxc6 {[%clk 0:02:33]}  bxc6 {[%clk 0:02:14]} 15. Ne5 {[%clk 0:02:33]}  Rb8 {[%clk 0:02:14]} 16. Nxc6 {[%clk 0:01:45]}  Bxc6 {[%clk 0:02:14]} 17. Qxc6 {[%clk 0:01:45]}  Rxb2 {[%clk 0:02:15]} 18. Bc3 {[%clk 0:01:36]}  Rb3 {[%clk 0:02:14]} 19. Qxa4 {[%clk 0:01:32]}  Rxa3 {[%clk 0:02:13]} 20. Qc6 {[%clk 0:01:31]}  Nd5 {[%clk 0:02:11]} 21. Be4 {[%clk 0:01:09]}  Nxc3 {[%clk 0:02:05]} 22. Rxc3 {[%clk 0:01:09]}  Rxc3 {[%clk 0:02:04]} 23. Qxc3 {[%clk 0:01:09]}  Bd6 {[%clk 0:02:05]} 24. g3 {[%clk 0:01:05]}  h5 {[%clk 0:02:01]} 25. Kg2 {[%clk 0:01:03]}  h4 {[%clk 0:02:02]} 26. Qc6 {[%clk 0:00:53]}  Qg5 {[%clk 0:02:00]} 27. Bf3 {[%clk 0:00:48]}  Rb8 {[%clk 0:01:53]} 28. Ra1 {[%clk 0:00:43]}  hxg3 {[%clk 0:01:50]} 29. hxg3 {[%clk 0:00:43]}  Bxg3 {[%clk 0:01:45]} 30. fxg3 {[%clk 0:00:41]}  Rb2+ {[%clk 0:01:34]} 0-1


[Site "https://www.chess.com"]